bitfinex-derivatives/quotes_SOLF0:USTF0_20240830
["timestamp","ask_amount","ask_price","bid_price","bid_amount"]
[1725027328713,0.04591418,138.14,138.1,3.54483093]
[1725027328914,0.04591418,138.14,138.09,3.62]
[1725027328915,3.66491418,138.14,138.09,3.62]
[1725027329423,3.66491418,138.14,138.09,3.63705006]
[1725027329424,0.04591418,138.14,138.09,3.63705006]
[1725027329668,0.04591418,138.14,138.06,36.059]
[1725027329970,0.04591418,138.14,138.07,1.32973553]
[1725027330168,0.05431294,138.12,138.04,34.69]
[1725027330313,0.05431294,138.12,138.06,34.69]
[1725027330514,0.0497187,138.1,138.02,1.369]
[1725027331013,0.0497187,138.1,138.03,36.02017137]
[1725027331212,0.0497187,138.1,138.05,34.69]
[1725027331616,0.0497187,138.1,138.05,38.3111]
[1725027331829,0.0497187,138.1,138.09,34.69]
[1725027332224,0.0497187,138.1,138.07,34.69]
[1725027332622,0.0497187,138.1,138.06,3.6208]
[1725027332921,0.0497187,138.1,138.07,34.69]
[1725027333123,0.0497187,138.1,138.09,38.3102]
[1725027333331,0.0497187,138.1,138.09,3.62816632]
[1725027333531,0.0497187,138.1,138.05,34.69]
[1725027333832,0.0497187,138.1,138.08,3.6203]
[1725027334217,0.0497187,138.1,138.06,34.69]
[1725027334881,0.0497187,138.1,138.09,3.6202]
[1725027335236,1.355,138.19,138.09,3.6186926]
[1725027335453,42.75,138.24,138.13,34.69]
[1725027335638,34.69,138.2,138.09,6.4769546]
[1725027335846,34.69,138.2,138.1,34.69]
[1725027336021,0.0500758,138.16,138.14,0.0499355]
[1725027336228,0.05372164,138.16,138.14,0.0499355]
[1725027336420,3.6187,138.15,138.14,0.0499355]
[1725027336623,0.05372164,138.16,138.14,0.0499355]
[1725027337330,1.41612164,138.16,138.06,34.69]
[1725027337627,37.4267,138.16,138.08,3.6202]
[1725027337820,37.4267,138.16,138.06,34.69]
[1725027338023,37.4267,138.16,138.08,3.6204]
[1725027338328,2.7367,138.16,138.06,34.69]
[1725027338531,0.04760464,138.12,138.09,3.6201]
[1725027338727,0.04760464,138.12,138.06,34.69]
[1725027338931,0.04760464,138.12,138.05,9.3667]
[1725027339531,3.66720464,138.12,138.06,3.621]
[1725027339738,0.04760464,138.12,138.02,38.33155973]
[1725027339934,0.05541925,138.08,138.03,1.33010858]
[1725027340242,0.05541925,138.08,137.95,3.32522656]
[1725027340243,34.69,138.05,137.95,3.32522656]
[1725027340459,34.69,138.05,137.96,1.33065809]
[1725027340460,0.05528467,138.01,137.96,1.33065809]
[1725027340714,0.05528467,138.01,137.94,3.6239]
[1725027340936,0.04737181,137.99,137.95,1.31088059]
[1725027341227,0.04576028,137.98,137.93,3.64755669]
[1725027341436,0.04576028,137.98,137.92,34.71]
[1725027341437,1.3644,138.02,137.94,1.31094396]
[1725027341626,0.05072663,137.97,137.95,1.31094396]
[1725027341841,0.04768497,137.97,137.92,34.71]
[1725027342020,0.04768497,137.97,137.93,1.31092094]
[1725027342220,0.04768497,137.97,137.95,3.6239]
[1725027342434,36.0954,138.07,137.96,34.69]
[1725027342646,36.0954,138.07,137.93,12.10372806]
[1725027342647,1.4054,138.07,137.99,34.69]
[1725027342937,34.69,138.06,137.96,34.69]
[1725027343135,34.69,138.06,137.94,34.69]
[1725027343323,1.3758,138.05,137.94,34.69]
[1725027343529,0.05480771,138.01,137.98,0.04617565]
[1725027347834,0.05480771,138.01,137.98,3.66927565]
[1725027348031,0.05480771,138.01,137.98,0.04617565]
[1725027348233,0.05480771,138.01,137.99,3.63952115]
[1725027348537,0.05480771,138.01,138.0,7.16687796]
[1725027348737,34.69,138.1,138.0,34.69]
[1725027349033,34.69,138.1,137.99,6.3561982]
[1725027349537,34.69,138.08,137.99,3.6626982]
[1725027349834,0.05388807,138.05,138.02,0.04997766]
[1725027350229,1.38928807,138.05,138.02,0.04997766]
[1725027350431,4.00038807,138.05,138.02,0.04997766]
[1725027350736,3.6217,138.04,138.02,0.04997766]
[1725027350936,0.05388807,138.05,138.02,0.04997766]
[1725027351139,5.01078807,138.05,138.02,0.04997766]
[1725027351338,1.38928807,138.05,138.02,0.04997766]
[1725027351849,3.6218,138.03,138.02,0.04997766]
[1725027352540,43.11928807,138.05,138.02,0.04997766]
[1725027352541,1.38928807,138.05,138.02,0.04997766]
[1725027353139,0.05388807,138.05,138.02,3.61293289]
[1725027353444,0.05388807,138.05,138.04,3.6215]
[1725027353630,0.05388807,138.05,138.02,3.6390033]
[1725027353938,0.05388807,138.05,138.04,3.6215]
[1725027355538,0.05388807,138.05,138.02,45.3778964]
[1725027355737,0.05388807,138.05,138.02,0.04997766]
[1725027356534,1.3612,138.12,138.03,41.73]
[1725027356737,1.3139,138.13,138.03,48.03622715]
[1725027356942,1.3139,138.13,138.05,41.73]
[1725027357648,0.05336069,138.1,138.08,0.04846081]
[1725027359842,0.05336069,138.1,138.09,3.6202]
[1725027360244,0.05336069,138.1,138.08,0.04846081]
[1725027361148,0.05336069,138.1,138.08,3.66886081]
[1725027361539,0.05336069,138.1,138.08,0.04846081]
[1725027361851,1.3529,138.2,138.09,41.73]
[1725027362150,2.7614,138.23,138.16,41.73]
[1725027362345,50.59,138.29,138.16,45.2917694]
[1725027362546,1.4269,138.28,138.16,54.1517694]
[1725027362735,1.4269,138.28,138.21,0.04979664]
[1725027362736,0.04680142,138.23,138.21,0.04979664]
[1725027362942,0.05352084,138.23,138.21,0.04979664]
[1725027363155,0.05352084,138.23,138.11,41.73]
[1725027363447,3.52991941,138.24,138.12,1.30929625]
[1725027363746,3.61097109,138.24,138.12,1.30929625]
[1725027363946,1.3793,138.23,138.11,55.64710627]
[1725027364250,0.04905106,138.18,138.16,0.05380642]
[1725027364450,0.04800373,138.18,138.16,0.05380642]
[1725027365149,3.6181,138.17,138.16,0.05380642]
[1725027365359,0.04800373,138.18,138.16,0.05380642]
[1725027365536,3.6181,138.17,138.16,0.05380642]
[1725027366138,0.04800373,138.18,138.16,0.05380642]
[1725027366139,3.66600373,138.18,138.16,0.05380642]
[1725027366344,0.04800373,138.18,138.16,0.05380642]
[1725027366549,3.6199,138.11,138.07,3.6207]
[1725027366747,3.53877245,138.17,138.07,3.70556256]
[1725027366949,41.73,138.2,138.06,41.73]
[1725027367251,3.6185,138.16,138.09,41.73]
[1725027367441,54.21415741,138.2,138.06,45.4008297]
[1725027367748,54.21415741,138.2,138.12,0.04682446]
[1725027367749,3.6192,138.13,138.12,0.04682446]
[1725027368343,3.6653876,138.14,138.12,0.04682446]
[1725027368544,0.0463876,138.14,138.12,0.04682446]
[1725027369054,1.4153,138.21,138.12,0.04682446]
[1725027369251,3.6178,138.19,138.11,41.73]
[1725027369548,1.4153,138.21,138.12,1.3582]
[1725027369750,3.6183,138.17,138.12,4.9774]
[1725027369952,1.4153,138.21,138.12,1.3582]
[1725027370149,0.04661269,138.18,138.15,0.04904434]
[1725027370455,3.6184,138.17,138.15,0.04904434]
[1725027370651,0.04661269,138.18,138.15,0.04904434]
[1725027370855,0.04661269,138.18,138.15,3.66744434]
[1725027371357,3.66461269,138.18,138.15,0.04904434]
[1725027371545,0.04661269,138.18,138.15,0.04904434]
[1725027371949,0.04661269,138.18,138.16,3.6182]
[1725027373153,0.04661269,138.18,138.17,3.6181]
[1725027373747,1.3793,138.23,138.19,3.6174]
[1725027373948,34.73,138.25,138.19,3.6174]
[1725027374148,34.73,138.25,138.12,1.3582]
[1725027374149,34.73,138.21,138.04,10.56792656]
[1725027374349,3.6182,138.17,138.14,3.6189]
[1725027374550,38.29466792,138.19,138.12,3.65329625]
[1725027374748,3.6191,138.14,138.07,2.6955]
[1725027375052,34.73,138.17,138.07,2.6955]
[1725027375053,0.04739003,138.12,138.09,0.0497093]
[1725027375454,0.04739003,138.12,138.11,3.6197]
[1725027375957,10.1565,138.2,138.11,3.5570712]
[1725027375958,1.2965,138.2,138.11,3.5570712]
[1725027376150,43.59,138.23,138.12,34.73]
[1725027376357,3.6173,138.21,138.12,34.73]
[1725027376553,34.73,138.23,138.15,3.6184]
[1725027376757,34.73,138.23,138.12,34.73]
[1725027376960,3.6169,138.22,138.12,34.73]
[1725027377258,0.0480413,138.18,138.17,3.618]
[1725027377461,49.94623804,138.25,138.16,0.05144096]
[1725027377462,0.05279555,138.19,138.16,0.05144096]
[1725027377651,34.77985134,138.19,138.16,0.05229689]
[1725027377962,3.6181,138.18,138.16,0.05229689]
[1725027378153,0.04985134,138.19,138.16,0.05229689]
[1725027379053,3.6181,138.17,138.16,0.05229689]
[1725027379249,0.04985134,138.19,138.16,0.05229689]
[1725027379656,0.04985134,138.19,138.16,3.67059689]
[1725027380160,0.04985134,138.19,138.17,3.6181]
[1725027380862,0.04985134,138.19,138.16,3.67059689]
[1725027381253,0.04985134,138.19,138.16,0.05229689]
[1725027382368,3.6181,138.17,138.16,0.05229689]
[1725027382572,3.6181,138.17,138.1,34.73]
[1725027382573,34.73,138.17,138.1,3.64905618]
[1725027382857,34.73,138.17,138.08,1.3241]
[1725027382858,1.3914,138.16,138.08,1.3241]
[1725027383059,3.6194,138.13,138.09,3.6202]
[1725027383261,2.7416,138.16,138.08,4.90163829]
[1725027383458,3.6191,138.14,138.1,3.6198]
[1725027383659,0.0550122,138.13,138.11,0.05185928]
[1725027384954,0.0550122,138.13,138.12,3.6194]
[1725027385350,57.12382797,138.22,138.11,0.05185928]
[1725027385656,57.12382797,138.22,138.1,41.72]
[1725027385657,44.4674,138.22,138.1,41.72]
[1725027386156,44.4674,138.22,138.1,50.72]
[1725027386362,0.0548726,138.17,138.15,0.05101287]
[1725027386560,0.05123487,138.17,138.15,0.05101287]
[1725027387263,3.66953487,138.17,138.15,0.05101287]
[1725027387461,0.05123487,138.17,138.15,0.05101287]
[1725027388171,0.05123487,138.17,138.16,3.6184]
[1725027388771,3.6184,138.16,138.15,0.05101287]
[1725027389156,3.66953487,138.17,138.15,0.05101287]
[1725027389362,0.05123487,138.17,138.15,0.05101287]
[1725027389665,0.05123487,138.17,138.07,44.4155]
[1725027389666,3.619,138.14,138.11,3.6196]
[1725027389962,3.619,138.14,138.02,91.96247674]
[1725027389963,41.72,138.13,138.0,41.72]
[1725027390163,41.72,138.11,138.01,2.73338348]
[1725027390374,3.6205,138.08,138.04,3.6215]
[1725027390570,41.72,138.11,138.01,1.4232]
[1725027390868,0.05368459,138.07,138.05,0.05415658]
[1725027391965,3.619,138.14,138.05,41.77415658]
[1725027392163,3.619,138.14,138.06,1.316]
[1725027392560,1.3696,138.16,138.06,1.316]
[1725027393065,1.3696,138.16,138.1,3.6198]
[1725027393267,1.3696,138.16,138.1,3.67450221]
[1725027393268,0.05180719,138.12,138.1,3.67450221]
[1725027393772,0.05180719,138.12,138.11,3.6197]
[1725027393978,0.05180719,138.12,138.1,0.05470221]
[1725027394168,3.6197,138.11,138.1,0.05470221]
[1725027394476,0.05180719,138.12,138.02,1.3508]
[1725027394769,1.4109,138.12,138.01,4.99174363]
[1725027394968,2.7714,138.12,138.02,1.31019094]
[1725027395169,3.6203,138.09,138.02,1.31019094]
[1725027395364,1.4109,138.12,138.04,0.05187217]
[1725027395566,0.04693476,138.07,138.04,0.05187217]
[1725027395762,0.04693476,138.07,138.04,41.77187217]
[1725027396062,2.7301,138.16,138.04,41.77187217]
[1725027396267,2.7301,138.16,138.04,41.72]
[1725027396268,1.4109,138.14,138.04,41.72]
[1725027396866,3.6196,138.12,138.04,41.72]
[1725027397062,0.0467676,138.09,138.07,0.04786619]
[1725027397267,0.05061999,138.09,138.07,0.04786619]
[1725027397967,0.05061999,138.09,138.08,3.58038052]
[1725027398372,0.05061999,138.09,138.07,0.04786619]
[1725027399276,0.05061999,138.09,138.07,3.66846619]
[1725027399462,41.72,138.17,138.07,0.04786619]
[1725027399666,3.58720368,138.18,138.08,1.4018]
[1725027399862,41.72,138.15,138.08,4.95461922]
[1725027400075,3.6191,138.14,138.09,3.6202]
[1725027400273,41.72,138.15,138.02,41.72]
[1725027400473,0.05274984,138.1,138.07,0.04886342]
[1725027400670,3.6205,138.08,138.07,0.04886342]
[1725027400874,0.05274984,138.1,138.07,0.04886342]
[1725027401367,3.6203,138.09,138.07,0.04886342]
[1725027401671,0.05274984,138.1,138.07,0.04886342]
[1725027402477,3.67284984,138.1,138.07,0.04886342]
[1725027402668,0.05274984,138.1,138.07,0.04886342]
[1725027404068,0.05274984,138.1,138.09,3.6202]
[1725027404281,1.3395,138.19,138.09,3.57149007]
[1725027404472,36.0895,138.19,138.09,34.75]
[1725027404775,37.4556,138.19,138.09,34.75]
[1725027405266,0.05463559,138.15,138.13,0.04806141]
[1725027405575,36.1062,138.22,138.13,3.67385696]
[1725027405781,34.75,138.24,138.13,34.75]
[1725027406069,41.69,138.2,138.11,1.4136]
[1725027406269,41.69,138.2,138.11,5.08986257]
[1725027406678,0.0488529,138.17,138.14,0.04593917]
[1725027408373,41.69,138.16,138.14,0.04593917]
[1725027408564,41.69,138.16,138.06,1.3315]
[1725027408776,41.69,138.16,138.03,9.38]
[1725027408777,41.69,138.16,138.05,3.62958561]
[1725027408976,41.69,138.16,138.03,10.8002]
[1725027409172,51.07,138.16,138.08,3.6205]
[1725027409366,41.69,138.16,138.05,3.59035914]
[1725027409568,0.0484935,138.12,138.09,0.05092902]
[1725027409774,0.0484935,138.12,138.09,3.67112902]
[1725027409971,0.0484935,138.12,138.09,0.05092902]
[1725027410578,0.0484935,138.12,138.1,3.6199]
[1725027410776,0.0484935,138.12,138.09,0.05092902]
[1725027411078,0.0484935,138.12,138.11,3.6197]
[1725027411270,1.4036,138.19,138.11,41.69]
[1725027412174,0.05485995,138.16,138.14,0.05563561]
[1725027412781,0.05485995,138.16,138.15,3.6187]
[1725027413076,0.05485995,138.16,138.14,0.05563561]
[1725027414670,3.67335995,138.16,138.14,0.05563561]
[1725027414867,0.05485995,138.16,138.14,0.05563561]
[1725027416377,0.05485995,138.16,138.15,3.6187]
[1725027417686,3.617,138.22,138.18,3.6179]
[1725027418475,42.9995,138.29,138.18,41.69]
[1725027418674,0.04834396,138.25,138.22,0.04961321]
[1725027419180,0.04834396,138.25,138.22,3.66621321]
[1725027419988,0.04834396,138.25,138.23,3.6926563]
[1725027420190,0.04834396,138.25,138.22,0.04961321]
[1725027420481,1.4253,138.33,138.24,41.69]
[1725027420673,1.4253,138.33,138.28,3.6151]
[1725027420874,1.3254,138.35,138.24,41.69]
[1725027421074,1.3254,138.35,138.27,41.69]
[1725027421278,1.3254,138.35,138.31,3.6143]
[1725027421579,0.04853235,138.32,138.3,0.05270361]
[1725027422681,3.615,138.29,138.21,52.461]
[1725027422881,45.35822728,138.33,138.25,3.616]
[1725027423188,3.6158,138.26,138.21,3.6338975]
[1725027423485,41.69,138.28,138.17,1.3616]
[1725027423783,0.05411929,138.24,138.21,0.05144404]
[1725027423982,0.05411929,138.24,138.23,3.6166]
[1725027425089,1.4252,138.32,138.23,41.69]
[1725027425293,1.4252,138.32,138.24,1.4091]
[1725027425489,3.6145,138.31,138.26,3.6156]
[1725027425789,1.4252,138.32,138.24,1.4091]
[1725027425993,0.04703353,138.29,138.27,0.04604962]
[1725027426601,0.04703353,138.29,138.27,3.66154962]
[1725027426783,0.04703353,138.29,138.27,0.04604962]
[1725027427584,3.6153,138.28,138.27,0.04604962]
[1725027428195,0.04703353,138.29,138.27,0.04604962]
[1725027428888,3.6153,138.28,138.27,0.04604962]
[1725027429691,0.04703353,138.29,138.27,0.04604962]
[1725027430092,3.66213353,138.29,138.27,0.04604962]
[1725027430398,0.04703353,138.29,138.27,0.04604962]
[1725027430594,3.66223353,138.29,138.27,0.04604962]
[1725027431191,0.04703353,138.29,138.27,3.66134962]
[1725027431393,0.04703353,138.29,138.27,0.04604962]
[1725027431792,3.6153,138.28,138.27,0.04604962]
[1725027431997,34.7,138.29,138.19,36.0557]
[1725027432189,34.7,138.29,138.2,3.65870412]
[1725027432497,34.7,138.29,138.19,36.0557]
[1725027433000,0.04705842,138.25,138.23,0.04844499]
[1725027433196,0.04705842,138.25,138.23,3.70967933]
[1725027433398,0.04705842,138.25,138.23,0.04844499]
[1725027434600,0.04705842,138.25,138.23,3.66504499]
[1725027434900,0.04705842,138.25,138.23,0.04844499]
[1725027435198,0.04705842,138.25,138.24,3.6163]
[1725027435806,34.7,138.33,138.23,34.7]
[1725027435995,1.418,138.34,138.25,34.7]
[1725027436407,1.418,138.34,138.26,3.65516348]
[1725027436811,3.6143,138.32,138.27,3.6153]
[1725027437011,0.04872761,138.31,138.28,0.04790306]
[1725027437511,3.66332761,138.31,138.28,0.04790306]
[1725027438106,0.04872761,138.31,138.28,3.66320306]
[1725027439712,0.04872761,138.31,138.29,3.6149]
[1725027439906,0.04872761,138.31,138.28,0.04790306]
[1725027440112,0.04872761,138.31,138.3,3.6147]
[1725027440407,3.66322761,138.31,138.28,0.04790306]
[1725027440613,3.66322761,138.31,138.28,3.66310306]
[1725027440812,0.04872761,138.31,138.28,3.66310306]
[1725027441307,0.04872761,138.31,138.28,0.04790306]
[1725027443109,0.04872761,138.31,138.3,3.6147]
[1725027445527,1.4103,138.38,138.29,34.7]
[1725027445818,5.07134741,138.4,138.29,34.7]
[1725027446116,3.6124,138.39,138.31,34.7]
[1725027446324,0.05366986,138.36,138.34,0.04757972]
[1725027446505,0.05366986,138.36,138.35,3.6134]
[1725027447423,0.05366986,138.36,138.34,0.04757972]
[1725027447715,3.66686986,138.36,138.34,0.04757972]
[1725027448015,0.05366986,138.36,138.34,0.04757972]
[1725027448917,0.05366986,138.36,138.34,3.66107972]
[1725027449118,0.05366986,138.36,138.34,0.04757972]
[1725027449523,3.66696986,138.36,138.34,0.04757972]
[1725027449719,0.05366986,138.36,138.34,0.04757972]
[1725027450113,0.05366986,138.36,138.25,37.4691]
[1725027450416,34.7,138.35,138.25,1.3744]
[1725027450614,3.6142,138.32,138.28,3.6151]
[1725027451022,3.6142,138.32,138.29,3.6674026]
[1725027451023,0.04719201,138.31,138.29,3.6674026]
[1725027451319,0.04719201,138.31,138.29,0.0525026]
[1725027451614,0.04719201,138.31,138.3,38.3147]
[1725027451818,0.04719201,138.31,138.3,41.86300696]
[1725027452028,2.7966,138.39,138.3,38.24830696]
[1725027452213,6.409,138.39,138.34,34.7]
[1725027452412,2.7966,138.39,138.32,34.7]
[1725027452621,3.6128,138.38,138.33,3.6137]
[1725027452819,3.6128,138.38,138.32,34.7]
[1725027452820,2.7966,138.39,138.32,34.7]
[1725027453132,0.0459923,138.37,138.34,0.04754274]
[1725027453319,0.0459923,138.37,138.34,3.67716658]
[1725027453519,0.0459923,138.37,138.34,0.04754274]
[1725027453719,0.0459923,138.37,138.34,3.70607924]
[1725027453919,0.0459923,138.37,138.34,0.04754274]
[1725027454324,0.0459923,138.37,138.34,38.40439595]
[1725027454628,0.0459923,138.37,138.34,34.74754274]
[1725027454827,0.0459923,138.37,138.36,3.6132]
[1725027455024,0.0459923,138.37,138.36,7.22200328]
[1725027455726,0.0459923,138.37,138.36,41.92200328]
[1725027456533,0.0459923,138.37,138.34,0.04754274]
[1725027457636,0.0459923,138.37,138.35,3.56096119]
[1725027457824,0.0459923,138.37,138.34,0.04754274]
[1725027458123,0.0459923,138.37,138.34,3.67388575]
[1725027458324,0.0459923,138.37,138.34,0.04754274]
[1725027458734,0.0459923,138.37,138.36,3.6132]
[1725027462631,1.298,138.44,138.39,3.6121]
[1725027463234,3.6115,138.43,138.39,3.6121]
[1725027463831,3.6115,138.43,138.4,0.05472026]
[1725027463832,0.04834071,138.42,138.4,0.05472026]
[1725027464131,0.04834071,138.42,138.31,34.7]
[1725027464325,3.6125,138.39,138.33,34.7]
[1725027464931,0.05313876,138.37,138.35,0.04835552]
[1725027465131,0.05313876,138.37,138.35,3.64042566]
[1725027465533,0.05313876,138.37,138.36,3.6132]
[1725027466936,0.05313876,138.37,138.35,7.25372566]
[1725027467135,0.05313876,138.37,138.35,3.64042566]
[1725027467343,3.66623876,138.37,138.35,3.64042566]
[1725027467632,0.05313876,138.37,138.35,0.04835552]
[1725027467832,4.912,138.36,138.35,0.04835552]
[1725027468532,3.66613876,138.37,138.35,0.04835552]
[1725027468942,0.05313876,138.37,138.35,0.04835552]
[1725027470834,0.05313876,138.37,138.35,3.66165552]
[1725027471333,0.05313876,138.37,138.36,3.6132]
[1725027472442,0.05313876,138.37,138.35,3.66165552]
[1725027472738,3.66623876,138.37,138.35,0.04835552]
[1725027472931,0.05313876,138.37,138.35,0.04835552]
[1725027473438,0.05313876,138.37,138.36,3.6132]
[1725027473930,0.05313876,138.37,138.35,34.74835552]
[1725027473931,0.05313876,138.37,138.35,3.66165552]
[1725027474340,0.05313876,138.37,138.35,0.04835552]
[1725027475436,3.66623876,138.37,138.35,0.04835552]
[1725027475832,3.6132,138.36,138.35,0.04835552]
[1725027476934,0.05313876,138.37,138.35,3.66175552]
[1725027478433,3.66613876,138.37,138.35,0.04835552]
[1725027479542,3.6132,138.36,138.35,0.04835552]
[1725027479942,0.05313876,138.37,138.35,0.04835552]
[1725027480337,0.05313876,138.37,138.36,3.6132]
[1725027484343,1.319,138.42,138.39,3.6123]
[1725027484543,1.3806,138.43,138.38,34.7]
[1725027484743,1.3806,138.43,138.4,3.6119]
[1725027484941,1.3806,138.43,138.41,3.56493467]
[1725027485446,1.43448592,138.43,138.41,0.04971691]
[1725027485644,0.05388592,138.43,138.41,0.04971691]
[1725027487644,3.66538592,138.43,138.41,0.04971691]
[1725027488251,0.05388592,138.43,138.41,0.04971691]
[1725027489549,1.42488592,138.43,138.41,0.04971691]
[1725027489749,3.6116,138.42,138.41,0.04971691]
[1725027489954,1.42488592,138.43,138.33,34.7]
[1725027490149,4.89336679,138.43,138.33,34.7]
[1725027490341,3.6121,138.41,138.33,34.7]
[1725027490651,1.2984,138.45,138.37,34.7]
[1725027490854,1.2984,138.45,138.4,0.04931065]
[1725027490855,0.05435083,138.42,138.4,0.04931065]
[1725027491048,0.05435083,138.42,138.41,34.7]
[1725027491252,0.05435083,138.42,138.41,38.3119]
[1725027493051,5.06713797,138.49,138.41,38.3119]
[1725027493052,1.379,138.49,138.45,3.6108]
[1725027493245,1.379,138.49,138.41,34.7]
[1725027493246,1.379,138.49,138.43,3.60547461]
[1725027493550,3.6113,138.44,138.38,8.8]
[1725027493852,48.47039355,138.49,138.39,7.14401981]
[1725027494052,0.05487715,138.45,138.35,34.7]
[1725027494249,34.7,138.47,138.39,0.05421496]
[1725027494250,0.04945382,138.41,138.39,0.05421496]
[1725027494460,0.05183069,138.41,138.39,0.05421496]
[1725027495259,0.05183069,138.41,138.4,3.6121]
[1725027495552,1.3129,138.48,138.39,38.29975478]
[1725027495748,1.3129,138.48,138.42,34.7]
[1725027495944,3.6104,138.47,138.44,3.6109]
[1725027496450,0.04655521,138.47,138.44,0.05284144]
[1725027496648,3.65695521,138.47,138.44,3.66384144]
[1725027496949,0.04655521,138.47,138.44,0.05284144]
[1725027497155,0.04655521,138.47,138.38,3.6477178]
[1725027497352,36.0129,138.48,138.37,36.0275]
[1725027497554,3.611,138.45,138.41,3.6116]
[1725027497852,36.0129,138.48,138.37,39.58278825]
[1725027498049,36.0129,138.48,138.41,0.0528042]
[1725027498256,0.05217939,138.44,138.41,0.0528042]
[1725027498449,0.05217939,138.44,138.41,34.7528042]
[1725027498653,0.05217939,138.44,138.43,3.6113]
[1725027499159,0.05217939,138.44,138.43,38.3113]
[1725027500759,2.6944,138.5,138.47,3.6102]
[1725027501153,1.3628,138.51,138.47,3.6102]
[1725027501452,4.9722,138.51,138.47,3.6102]
[1725027501653,4.9722,138.51,138.48,3.61]
[1725027501654,1.3628,138.51,138.48,3.61]
[1725027501858,1.3628,138.51,138.48,3.66042108]
[1725027501859,0.05340486,138.51,138.48,3.66042108]
[1725027502157,0.05340486,138.51,138.48,0.05042108]
[1725027502458,0.05340486,138.51,138.49,3.6096]
[1725027502958,0.05340486,138.51,138.48,3.66042108]
[1725027503158,0.05340486,138.51,138.48,34.75042108]
[1725027503351,0.05340486,138.51,138.5,38.3095]
[1725027507256,0.05340486,138.51,138.5,3.6095]
[1725027507461,0.05340486,138.51,138.48,0.05042108]
[1725027508361,0.05340486,138.51,138.48,3.66032108]
[1725027508753,0.05340486,138.51,138.48,0.05042108]
[1725027509157,0.05340486,138.51,138.5,3.6095]
[1725027509359,0.05340486,138.51,138.48,0.05042108]
[1725027509558,0.05340486,138.51,138.48,3.66022108]
[1725027510263,0.05340486,138.51,138.48,0.05042108]
[1725027512463,3.66280486,138.51,138.48,3.66032108]
[1725027512671,3.66280486,138.51,138.48,0.05042108]
[1725027512672,0.05340486,138.51,138.48,0.05042108]
[1725027513366,0.05340486,138.51,138.4,36.0683]
[1725027513367,34.75340486,138.51,138.4,36.0683]
[1725027513575,34.75340486,138.51,138.38,1.358]
[1725027513576,34.7,138.47,138.38,1.358]
[1725027513868,34.7,138.45,138.39,3.69204953]
[1725027514067,1.3325,138.44,138.35,34.7]
[1725027514266,4.94693996,138.44,138.36,3.67327884]
[1725027514478,0.05414829,138.41,138.39,0.05433404]
[1725027514675,3.66614829,138.41,138.39,0.05433404]
[1725027515282,3.6121,138.4,138.39,0.05433404]
[1725027517588,0.05414829,138.41,138.39,0.05433404]
[1725027518187,0.05414829,138.41,138.4,3.6121]
[1725027519094,0.05414829,138.41,138.4,38.3121]
[1725027519285,37.3578,138.49,138.39,0.05433404]
[1725027519484,34.7,138.47,138.39,0.05433404]
[1725027520190,0.04973604,138.44,138.39,0.05433404]
[1725027520394,3.66103604,138.44,138.41,3.6117]
[1725027520997,3.68442035,138.44,138.39,0.05433404]
[1725027521197,34.7,138.43,138.39,0.05433404]
[1725027521386,3.612,138.41,138.39,0.05433404]
[1725027521694,36.0869,138.43,138.39,0.05433404]
[1725027521695,2.7671,138.43,138.39,0.05433404]
[1725027521896,3.6118,138.42,138.39,0.05433404]
[1725027522192,2.7671,138.43,138.39,0.05433404]
[1725027522393,3.66103604,138.44,138.41,3.6118]
[1725027522595,3.66103604,138.44,138.39,0.05433404]
[1725027522898,3.7485208,138.44,138.39,0.05433404]
[1725027523388,2.8023,138.43,138.39,0.05433404]
[1725027523593,37.5023,138.43,138.39,0.05433404]
[1725027524192,2.8023,138.43,138.39,0.05433404]
[1725027524787,6.4137,138.43,138.4,3.612]
[1725027525302,3.7485208,138.44,138.39,0.05433404]
[1725027525303,0.04973604,138.44,138.39,0.05433404]
[1725027525796,3.62400652,138.44,138.39,0.05433404]
[1725027526286,3.6114,138.43,138.4,3.6121]
[1725027526695,3.6114,138.43,138.39,0.05433404]
[1725027526696,3.6116,138.42,138.39,3.66653404]
[1725027527297,3.62400652,138.44,138.39,0.05433404]
[1725027528893,34.7,138.4,138.29,37.4965]
[1725027529097,1.4001,138.39,138.34,3.6137]